{"text_format":"3","workbook":"xlsx","n_sheets":3,"sheets":["Nhiệm vụ","Chế độ xem Tháng","Chế độ xem Tuần"],"not_rendered":{"images":4,"defined_names":16},"read":"whole","date_system":"1900"}

{"sheet":"Nhiệm vụ","index":0,"n_rows":15,"n_cols":3,"rows_kept":15}
[null,"CHẾ ĐỘ XEM THÁNG","CHẾ ĐỘ XEM TUẦN"]
[null," NHIỆM VỤ"]
[null,"MÔ TẢ","NGÀY ĐẾN HẠN"]
[null,"Nhiệm vụ 1",{"$f":"TODAY()","v":"2022-12-13"}]
[null,"Nhiệm vụ 2",{"$f":"TODAY()+15","v":"2022-12-28"}]
[null,"Nhiệm vụ 3",{"$f":"TODAY()+30","v":"2023-01-12"}]
[null,"Nhiệm vụ 4",{"$f":"TODAY()+45","v":"2023-01-27"}]
[null,"Nhiệm vụ 5",{"$f":"TODAY()+60","v":"2023-02-11"}]
[null,"Nhiệm vụ 6",{"$f":"TODAY()+75","v":"2023-02-26"}]
[null,"Nhiệm vụ 7",{"$f":"TODAY()+90","v":"2023-03-13"}]
[null,"Nhiệm vụ 8",{"$f":"TODAY()+105","v":"2023-03-28"}]
[null,"Nhiệm vụ 9",{"$f":"TODAY()+115","v":"2023-04-07"}]
[null,"Nhiệm vụ 10",{"$f":"TODAY()+130","v":"2023-04-22"}]
[null,"Nhiệm vụ 11",{"$f":"TODAY()+145","v":"2023-05-07"}]
[null,"Nhiệm vụ 12",{"$f":"TODAY()+160","v":"2023-05-22"}]

{"sheet":"Chế độ xem Tháng","index":1,"n_rows":17,"n_cols":8,"rows_kept":17}
[null,"NHIỆM VỤ","CHẾ ĐỘ XEM \nTUẦN"]
[null,"Chọn tháng:","Nhập Năm:"]
[null,{"$f":"TEXT(TODAY(),\"mmmm\")","v":"Tháng Mười Hai"},{"$f":"YEAR(TODAY())","v":2022}]
[null," CHẾ ĐỘ XEM THÁNG"]
[null,"THỨ HAI","THỨ BA","THỨ TƯ","THỨ NĂM","THỨ SÁU","THỨ BẢY","CHỦ NHẬT"]
[null,{"$f":"IF(WEEKDAY(DATEVALUE(\"1 \"&MoMonth&\" \"&MoYear),2)=COLUMN(A$2),1,IF(LEN(A6)>0,A6+1,\"\"))","v":""},"","",1,2,3,4]
[null,{"$f":"IF(LEN(B6)=0,\"\",IF(COUNTIF(Nhiệm_vụ[NGÀY ĐẾN HẠN],DATE(MoYear,MoMonthNum,B6))>0,\"Đến hạn nộp bài!\",\"\"))","v":""},{"$f":"_xlfn.SINGLE(IF(LEN(C6)=0,\"\",IF(COUNTIF(Nhiệm_vụ[NGÀY ĐẾN HẠN],DATE(MoYear,_xlfn.SINGLE(MoMonthNum),C6))>0,\"Đến hạn nộp bài!\",\"\")))","v":""},{"$f":"_xlfn.SINGLE(IF(LEN(D6)=0,\"\",IF(COUNTIF(Nhiệm_vụ[NGÀY ĐẾN HẠN],DATE(MoYear,_xlfn.SINGLE(MoMonthNum),D6))>0,\"Đến hạn nộp bài!\",\"\")))","v":""},{"$f":"_xlfn.SINGLE(IF(LEN(E6)=0,\"\",IF(COUNTIF(Nhiệm_vụ[NGÀY ĐẾN HẠN],DATE(MoYear,_xlfn.SINGLE(MoMonthNum),E6))>0,\"Đến hạn nộp bài!\",\"\")))","v":""},{"$f":"_xlfn.SINGLE(IF(LEN(F6)=0,\"\",IF(COUNTIF(Nhiệm_vụ[NGÀY ĐẾN HẠN],DATE(MoYear,_xlfn.SINGLE(MoMonthNum),F6))>0,\"Đến hạn nộp bài!\",\"\")))","v":""},{"$f":"_xlfn.SINGLE(IF(LEN(G6)=0,\"\",IF(COUNTIF(Nhiệm_vụ[NGÀY ĐẾN HẠN],DATE(MoYear,_xlfn.SINGLE(MoMonthNum),G6))>0,\"Đến hạn nộp bài!\",\"\")))","v":""},{"$f":"_xlfn.SINGLE(IF(LEN(H6)=0,\"\",IF(COUNTIF(Nhiệm_vụ[NGÀY ĐẾN HẠN],DATE(MoYear,_xlfn.SINGLE(MoMonthNum),H6))>0,\"Đến hạn nộp bài!\",\"\")))","v":""}]
[null,{"$f":"IF(LEN(H6)>0,IF(H6=DAY(DATE(MoYear,MoMonthNum+1,0)),\"\",H6+1),\"\")","v":5},{"$f":"IF(LEN(B8)>0,IF(B8=DAY(DATE(MoYear,MoMonthNum+1,0)),\"\",B8+1),\"\")","v":6},7,8,9,10,11]
[null,{"$f":"_xlfn.SINGLE(IF(LEN(B8)=0,\"\",IF(COUNTIF(Nhiệm_vụ[NGÀY ĐẾN HẠN],DATE(MoYear,_xlfn.SINGLE(MoMonthNum),B8))>0,\"Đến hạn nộp bài!\",\"\")))","v":""},{"$f":"_xlfn.SINGLE(IF(LEN(C8)=0,\"\",IF(COUNTIF(Nhiệm_vụ[NGÀY ĐẾN HẠN],DATE(MoYear,_xlfn.SINGLE(MoMonthNum),C8))>0,\"Đến hạn nộp bài!\",\"\")))","v":""},{"$f":"_xlfn.SINGLE(IF(LEN(D8)=0,\"\",IF(COUNTIF(Nhiệm_vụ[NGÀY ĐẾN HẠN],DATE(MoYear,_xlfn.SINGLE(MoMonthNum),D8))>0,\"Đến hạn nộp bài!\",\"\")))","v":""},{"$f":"_xlfn.SINGLE(IF(LEN(E8)=0,\"\",IF(COUNTIF(Nhiệm_vụ[NGÀY ĐẾN HẠN],DATE(MoYear,_xlfn.SINGLE(MoMonthNum),E8))>0,\"Đến hạn nộp bài!\",\"\")))","v":""},{"$f":"_xlfn.SINGLE(IF(LEN(F8)=0,\"\",IF(COUNTIF(Nhiệm_vụ[NGÀY ĐẾN HẠN],DATE(MoYear,_xlfn.SINGLE(MoMonthNum),F8))>0,\"Đến hạn nộp bài!\",\"\")))","v":""},{"$f":"_xlfn.SINGLE(IF(LEN(G8)=0,\"\",IF(COUNTIF(Nhiệm_vụ[NGÀY ĐẾN HẠN],DATE(MoYear,_xlfn.SINGLE(MoMonthNum),G8))>0,\"Đến hạn nộp bài!\",\"\")))","v":""},{"$f":"_xlfn.SINGLE(IF(LEN(H8)=0,\"\",IF(COUNTIF(Nhiệm_vụ[NGÀY ĐẾN HẠN],DATE(MoYear,_xlfn.SINGLE(MoMonthNum),H8))>0,\"Đến hạn nộp bài!\",\"\")))","v":""}]
[null,{"$f":"IF(LEN(H8)>0,IF(H8=DAY(DATE(MoYear,MoMonthNum+1,0)),\"\",H8+1),\"\")","v":12},{"$f":"IF(LEN(B10)>0,IF(B10=DAY(DATE(MoYear,MoMonthNum+1,0)),\"\",B10+1),\"\")","v":13},14,15,16,17,18]
[null,{"$f":"_xlfn.SINGLE(IF(LEN(B10)=0,\"\",IF(COUNTIF(Nhiệm_vụ[NGÀY ĐẾN HẠN],DATE(MoYear,_xlfn.SINGLE(MoMonthNum),B10))>0,\"Đến hạn nộp bài!\",\"\")))","v":""},{"$f":"_xlfn.SINGLE(IF(LEN(C10)=0,\"\",IF(COUNTIF(Nhiệm_vụ[NGÀY ĐẾN HẠN],DATE(MoYear,_xlfn.SINGLE(MoMonthNum),C10))>0,\"Đến hạn nộp bài!\",\"\")))","v":"Đến hạn nộp bài!"},{"$f":"_xlfn.SINGLE(IF(LEN(D10)=0,\"\",IF(COUNTIF(Nhiệm_vụ[NGÀY ĐẾN HẠN],DATE(MoYear,_xlfn.SINGLE(MoMonthNum),D10))>0,\"Đến hạn nộp bài!\",\"\")))","v":""},{"$f":"_xlfn.SINGLE(IF(LEN(E10)=0,\"\",IF(COUNTIF(Nhiệm_vụ[NGÀY ĐẾN HẠN],DATE(MoYear,_xlfn.SINGLE(MoMonthNum),E10))>0,\"Đến hạn nộp bài!\",\"\")))","v":""},{"$f":"_xlfn.SINGLE(IF(LEN(F10)=0,\"\",IF(COUNTIF(Nhiệm_vụ[NGÀY ĐẾN HẠN],DATE(MoYear,_xlfn.SINGLE(MoMonthNum),F10))>0,\"Đến hạn nộp bài!\",\"\")))","v":""},{"$f":"_xlfn.SINGLE(IF(LEN(G10)=0,\"\",IF(COUNTIF(Nhiệm_vụ[NGÀY ĐẾN HẠN],DATE(MoYear,_xlfn.SINGLE(MoMonthNum),G10))>0,\"Đến hạn nộp bài!\",\"\")))","v":""},{"$f":"_xlfn.SINGLE(IF(LEN(H10)=0,\"\",IF(COUNTIF(Nhiệm_vụ[NGÀY ĐẾN HẠN],DATE(MoYear,_xlfn.SINGLE(MoMonthNum),H10))>0,\"Đến hạn nộp bài!\",\"\")))","v":""}]
[null,{"$f":"IF(LEN(H10)>0,IF(H10=DAY(DATE(MoYear,MoMonthNum+1,0)),\"\",H10+1),\"\")","v":19},{"$f":"IF(LEN(B12)>0,IF(B12=DAY(DATE(MoYear,MoMonthNum+1,0)),\"\",B12+1),\"\")","v":20},21,22,23,24,25]
[null,{"$f":"_xlfn.SINGLE(IF(LEN(B12)=0,\"\",IF(COUNTIF(Nhiệm_vụ[NGÀY ĐẾN HẠN],DATE(MoYear,_xlfn.SINGLE(MoMonthNum),B12))>0,\"Đến hạn nộp bài!\",\"\")))","v":""},{"$f":"_xlfn.SINGLE(IF(LEN(C12)=0,\"\",IF(COUNTIF(Nhiệm_vụ[NGÀY ĐẾN HẠN],DATE(MoYear,_xlfn.SINGLE(MoMonthNum),C12))>0,\"Đến hạn nộp bài!\",\"\")))","v":""},{"$f":"_xlfn.SINGLE(IF(LEN(D12)=0,\"\",IF(COUNTIF(Nhiệm_vụ[NGÀY ĐẾN HẠN],DATE(MoYear,_xlfn.SINGLE(MoMonthNum),D12))>0,\"Đến hạn nộp bài!\",\"\")))","v":""},{"$f":"_xlfn.SINGLE(IF(LEN(E12)=0,\"\",IF(COUNTIF(Nhiệm_vụ[NGÀY ĐẾN HẠN],DATE(MoYear,_xlfn.SINGLE(MoMonthNum),E12))>0,\"Đến hạn nộp bài!\",\"\")))","v":""},{"$f":"_xlfn.SINGLE(IF(LEN(F12)=0,\"\",IF(COUNTIF(Nhiệm_vụ[NGÀY ĐẾN HẠN],DATE(MoYear,_xlfn.SINGLE(MoMonthNum),F12))>0,\"Đến hạn nộp bài!\",\"\")))","v":""},{"$f":"_xlfn.SINGLE(IF(LEN(G12)=0,\"\",IF(COUNTIF(Nhiệm_vụ[NGÀY ĐẾN HẠN],DATE(MoYear,_xlfn.SINGLE(MoMonthNum),G12))>0,\"Đến hạn nộp bài!\",\"\")))","v":""},{"$f":"_xlfn.SINGLE(IF(LEN(H12)=0,\"\",IF(COUNTIF(Nhiệm_vụ[NGÀY ĐẾN HẠN],DATE(MoYear,_xlfn.SINGLE(MoMonthNum),H12))>0,\"Đến hạn nộp bài!\",\"\")))","v":""}]
[null,{"$f":"IF(LEN(H12)>0,IF(H12=DAY(DATE(MoYear,MoMonthNum+1,0)),\"\",H12+1),\"\")","v":26},{"$f":"IF(LEN(B14)>0,IF(B14=DAY(DATE(MoYear,MoMonthNum+1,0)),\"\",B14+1),\"\")","v":27},28,29,30,31,""]
[null,{"$f":"_xlfn.SINGLE(IF(LEN(B14)=0,\"\",IF(COUNTIF(Nhiệm_vụ[NGÀY ĐẾN HẠN],DATE(MoYear,_xlfn.SINGLE(MoMonthNum),B14))>0,\"Đến hạn nộp bài!\",\"\")))","v":""},{"$f":"_xlfn.SINGLE(IF(LEN(C14)=0,\"\",IF(COUNTIF(Nhiệm_vụ[NGÀY ĐẾN HẠN],DATE(MoYear,_xlfn.SINGLE(MoMonthNum),C14))>0,\"Đến hạn nộp bài!\",\"\")))","v":""},{"$f":"_xlfn.SINGLE(IF(LEN(D14)=0,\"\",IF(COUNTIF(Nhiệm_vụ[NGÀY ĐẾN HẠN],DATE(MoYear,_xlfn.SINGLE(MoMonthNum),D14))>0,\"Đến hạn nộp bài!\",\"\")))","v":"Đến hạn nộp bài!"},{"$f":"_xlfn.SINGLE(IF(LEN(E14)=0,\"\",IF(COUNTIF(Nhiệm_vụ[NGÀY ĐẾN HẠN],DATE(MoYear,_xlfn.SINGLE(MoMonthNum),E14))>0,\"Đến hạn nộp bài!\",\"\")))","v":""},{"$f":"_xlfn.SINGLE(IF(LEN(F14)=0,\"\",IF(COUNTIF(Nhiệm_vụ[NGÀY ĐẾN HẠN],DATE(MoYear,_xlfn.SINGLE(MoMonthNum),F14))>0,\"Đến hạn nộp bài!\",\"\")))","v":""},{"$f":"_xlfn.SINGLE(IF(LEN(G14)=0,\"\",IF(COUNTIF(Nhiệm_vụ[NGÀY ĐẾN HẠN],DATE(MoYear,_xlfn.SINGLE(MoMonthNum),G14))>0,\"Đến hạn nộp bài!\",\"\")))","v":""},{"$f":"_xlfn.SINGLE(IF(LEN(H14)=0,\"\",IF(COUNTIF(Nhiệm_vụ[NGÀY ĐẾN HẠN],DATE(MoYear,_xlfn.SINGLE(MoMonthNum),H14))>0,\"Đến hạn nộp bài!\",\"\")))","v":""}]
[null,{"$f":"IF(LEN(H14)>0,IF(H14=DAY(DATE(MoYear,MoMonthNum+1,0)),\"\",H14+1),\"\")","v":""},{"$f":"IF(LEN(B16)>0,IF(B16=DAY(DATE(MoYear,MoMonthNum+1,0)),\"\",B16+1),\"\")","v":""},"","","","",""]
[null,{"$f":"_xlfn.SINGLE(IF(LEN(B16)=0,\"\",IF(COUNTIF(Nhiệm_vụ[NGÀY ĐẾN HẠN],DATE(MoYear,_xlfn.SINGLE(MoMonthNum),B16))>0,\"Đến hạn nộp bài!\",\"\")))","v":""},{"$f":"_xlfn.SINGLE(IF(LEN(C16)=0,\"\",IF(COUNTIF(Nhiệm_vụ[NGÀY ĐẾN HẠN],DATE(MoYear,_xlfn.SINGLE(MoMonthNum),C16))>0,\"Đến hạn nộp bài!\",\"\")))","v":""},{"$f":"_xlfn.SINGLE(IF(LEN(D16)=0,\"\",IF(COUNTIF(Nhiệm_vụ[NGÀY ĐẾN HẠN],DATE(MoYear,_xlfn.SINGLE(MoMonthNum),D16))>0,\"Đến hạn nộp bài!\",\"\")))","v":""},{"$f":"_xlfn.SINGLE(IF(LEN(E16)=0,\"\",IF(COUNTIF(Nhiệm_vụ[NGÀY ĐẾN HẠN],DATE(MoYear,_xlfn.SINGLE(MoMonthNum),E16))>0,\"Đến hạn nộp bài!\",\"\")))","v":""},{"$f":"_xlfn.SINGLE(IF(LEN(F16)=0,\"\",IF(COUNTIF(Nhiệm_vụ[NGÀY ĐẾN HẠN],DATE(MoYear,_xlfn.SINGLE(MoMonthNum),F16))>0,\"Đến hạn nộp bài!\",\"\")))","v":""},{"$f":"_xlfn.SINGLE(IF(LEN(G16)=0,\"\",IF(COUNTIF(Nhiệm_vụ[NGÀY ĐẾN HẠN],DATE(MoYear,_xlfn.SINGLE(MoMonthNum),G16))>0,\"Đến hạn nộp bài!\",\"\")))","v":""},{"$f":"_xlfn.SINGLE(IF(LEN(H16)=0,\"\",IF(COUNTIF(Nhiệm_vụ[NGÀY ĐẾN HẠN],DATE(MoYear,_xlfn.SINGLE(MoMonthNum),H16))>0,\"Đến hạn nộp bài!\",\"\")))","v":""}]

{"sheet":"Chế độ xem Tuần","index":2,"n_rows":17,"n_cols":8,"rows_kept":17}
[null,"NHIỆM VỤ","CHẾ ĐỘ XEM \nTHÁNG"]
[null,"Chọn tháng:","Nhập năm:","Chọn tuần #:"]
[null,"Tháng Tám",{"$f":"YEAR(TODAY())","v":2022},"Tuần 1"]
[null," CHẾ ĐỘ XEM TUẦN"]
[null,{"$f":"IF(WEEKDAY(DATEVALUE(\"1 \"&WkMonth&\" \"&WkYear),2)=COLUMN(A$2),1,IF(LEN(A5)>0,A5+1,\"\"))","v":1},2,3,4,5,6,7]
[null,{"$f":"IF(LEN(H5)>0,IF(H5=LastDayOfMonth_Week,\"\",H5+1),\"\")","v":8},{"$f":"IF(LEN(B6)>0,IF(B6=LastDayOfMonth_Week,\"\",B6+1),\"\")","v":9},10,11,12,13,14]
[null,{"$f":"IF(LEN(H6)>0,IF(H6=LastDayOfMonth_Week,\"\",H6+1),\"\")","v":15},16,17,18,19,20,21]
[null,{"$f":"IF(LEN(H7)>0,IF(H7=LastDayOfMonth_Week,\"\",H7+1),\"\")","v":22},23,24,25,26,27,28]
[null,{"$f":"IF(LEN(H8)>0,IF(H8=LastDayOfMonth_Week,\"\",H8+1),\"\")","v":29},30,31,"","","",""]
[null,{"$f":"IF(LEN(H9)>0,IF(H9=LastDayOfMonth_Week,\"\",H9+1),\"\")","v":""},"","","","","",""]
[null,"THỨ HAI","THỨ BA","THỨ TƯ","THỨ NĂM","THỨ SÁU","THỨ BẢY","CHỦ NHẬT"]
[null,{"$f":"IF(B14=\"\",IF(AND(ISNUMBER(A12),A12<LastDayOfMonth_Week),A12+1,\"\"),IF(B14<=7,\"\",INDEX(WkMonthView,WkWeek,COLUMN(A$2))-7))","v":""},"","","","","",""]
[null,{"$f":"_xlfn.SINGLE(IF(LEN(B12)=0,\"\",IF(COUNTIF(Nhiệm_vụ[NGÀY ĐẾN HẠN],DATE(WkYear,_xlfn.SINGLE(WkMonthNum),B12))>0,\"Đến hạn nộp bài!\",\"\")))","v":""},{"$f":"_xlfn.SINGLE(IF(LEN(C12)=0,\"\",IF(COUNTIF(Nhiệm_vụ[NGÀY ĐẾN HẠN],DATE(WkYear,_xlfn.SINGLE(WkMonthNum),C12))>0,\"Đến hạn nộp bài!\",\"\")))","v":""},{"$f":"_xlfn.SINGLE(IF(LEN(D12)=0,\"\",IF(COUNTIF(Nhiệm_vụ[NGÀY ĐẾN HẠN],DATE(WkYear,_xlfn.SINGLE(WkMonthNum),D12))>0,\"Đến hạn nộp bài!\",\"\")))","v":""},{"$f":"_xlfn.SINGLE(IF(LEN(E12)=0,\"\",IF(COUNTIF(Nhiệm_vụ[NGÀY ĐẾN HẠN],DATE(WkYear,_xlfn.SINGLE(WkMonthNum),E12))>0,\"Đến hạn nộp bài!\",\"\")))","v":""},{"$f":"_xlfn.SINGLE(IF(LEN(F12)=0,\"\",IF(COUNTIF(Nhiệm_vụ[NGÀY ĐẾN HẠN],DATE(WkYear,_xlfn.SINGLE(WkMonthNum),F12))>0,\"Đến hạn nộp bài!\",\"\")))","v":""},{"$f":"_xlfn.SINGLE(IF(LEN(G12)=0,\"\",IF(COUNTIF(Nhiệm_vụ[NGÀY ĐẾN HẠN],DATE(WkYear,_xlfn.SINGLE(WkMonthNum),G12))>0,\"Đến hạn nộp bài!\",\"\")))","v":""},{"$f":"_xlfn.SINGLE(IF(LEN(H12)=0,\"\",IF(COUNTIF(Nhiệm_vụ[NGÀY ĐẾN HẠN],DATE(WkYear,_xlfn.SINGLE(WkMonthNum),H12))>0,\"Đến hạn nộp bài!\",\"\")))","v":""}]
[null,{"$f":"INDEX(WkMonthView,WkWeek,COLUMN(A$2))","v":1},{"$f":"INDEX(WkMonthView,WkWeek,COLUMN(B$2))","v":2},{"$f":"INDEX(WkMonthView,WkWeek,COLUMN(C$2))","v":3},{"$f":"INDEX(WkMonthView,WkWeek,COLUMN(D$2))","v":4},{"$f":"INDEX(WkMonthView,WkWeek,COLUMN(E$2))","v":5},{"$f":"INDEX(WkMonthView,WkWeek,COLUMN(F$2))","v":6},{"$f":"INDEX(WkMonthView,WkWeek,COLUMN(G$2))","v":7}]
[null,{"$f":"_xlfn.SINGLE(IF(LEN(B14)=0,\"\",IF(COUNTIF(Nhiệm_vụ[NGÀY ĐẾN HẠN],DATE(WkYear,_xlfn.SINGLE(WkMonthNum),B14))>0,\"Đến hạn nộp bài!\",\"\")))","v":""},{"$f":"_xlfn.SINGLE(IF(LEN(C14)=0,\"\",IF(COUNTIF(Nhiệm_vụ[NGÀY ĐẾN HẠN],DATE(WkYear,_xlfn.SINGLE(WkMonthNum),C14))>0,\"Đến hạn nộp bài!\",\"\")))","v":""},{"$f":"_xlfn.SINGLE(IF(LEN(D14)=0,\"\",IF(COUNTIF(Nhiệm_vụ[NGÀY ĐẾN HẠN],DATE(WkYear,_xlfn.SINGLE(WkMonthNum),D14))>0,\"Đến hạn nộp bài!\",\"\")))","v":""},{"$f":"_xlfn.SINGLE(IF(LEN(E14)=0,\"\",IF(COUNTIF(Nhiệm_vụ[NGÀY ĐẾN HẠN],DATE(WkYear,_xlfn.SINGLE(WkMonthNum),E14))>0,\"Đến hạn nộp bài!\",\"\")))","v":""},{"$f":"_xlfn.SINGLE(IF(LEN(F14)=0,\"\",IF(COUNTIF(Nhiệm_vụ[NGÀY ĐẾN HẠN],DATE(WkYear,_xlfn.SINGLE(WkMonthNum),F14))>0,\"Đến hạn nộp bài!\",\"\")))","v":""},{"$f":"_xlfn.SINGLE(IF(LEN(G14)=0,\"\",IF(COUNTIF(Nhiệm_vụ[NGÀY ĐẾN HẠN],DATE(WkYear,_xlfn.SINGLE(WkMonthNum),G14))>0,\"Đến hạn nộp bài!\",\"\")))","v":""},{"$f":"_xlfn.SINGLE(IF(LEN(H14)=0,\"\",IF(COUNTIF(Nhiệm_vụ[NGÀY ĐẾN HẠN],DATE(WkYear,_xlfn.SINGLE(WkMonthNum),H14))>0,\"Đến hạn nộp bài!\",\"\")))","v":""}]
[null,{"$f":"IFERROR(IF(B14=\"\",IF(AND(ISNUMBER(A16),A16<LastDayOfMonth_Week),A16+1,$H$14+COLUMN(A$2)),IF(B14+7>LastDayOfMonth_Week,\"\",INDEX(WkMonthView,WkWeek,COLUMN(A$2))+7)),\"\")","v":8},{"$f":"IFERROR(IF(C14=\"\",IF(AND(ISNUMBER(B16),B16<LastDayOfMonth_Week),B16+1,$H$14+COLUMN(B$2)),IF(C14+7>LastDayOfMonth_Week,\"\",INDEX(WkMonthView,WkWeek,COLUMN(B$2))+7)),\"\")","v":9},{"$f":"IFERROR(IF(D14=\"\",IF(AND(ISNUMBER(C16),C16<LastDayOfMonth_Week),C16+1,$H$14+COLUMN(C$2)),IF(D14+7>LastDayOfMonth_Week,\"\",INDEX(WkMonthView,WkWeek,COLUMN(C$2))+7)),\"\")","v":10},{"$f":"IFERROR(IF(E14=\"\",IF(AND(ISNUMBER(D16),D16<LastDayOfMonth_Week),D16+1,$H$14+COLUMN(D$2)),IF(E14+7>LastDayOfMonth_Week,\"\",INDEX(WkMonthView,WkWeek,COLUMN(D$2))+7)),\"\")","v":11},{"$f":"IFERROR(IF(F14=\"\",IF(AND(ISNUMBER(E16),E16<LastDayOfMonth_Week),E16+1,$H$14+COLUMN(E$2)),IF(F14+7>LastDayOfMonth_Week,\"\",INDEX(WkMonthView,WkWeek,COLUMN(E$2))+7)),\"\")","v":12},{"$f":"IFERROR(IF(G14=\"\",IF(AND(ISNUMBER(F16),F16<LastDayOfMonth_Week),F16+1,$H$14+COLUMN(F$2)),IF(G14+7>LastDayOfMonth_Week,\"\",INDEX(WkMonthView,WkWeek,COLUMN(F$2))+7)),\"\")","v":13},{"$f":"IFERROR(IF(H14=\"\",IF(AND(ISNUMBER(G16),G16<LastDayOfMonth_Week),G16+1,$H$14+COLUMN(G$2)),IF(H14+7>LastDayOfMonth_Week,\"\",INDEX(WkMonthView,WkWeek,COLUMN(G$2))+7)),\"\")","v":14}]
[null,{"$f":"_xlfn.SINGLE(IF(LEN(B16)=0,\"\",IF(COUNTIF(Nhiệm_vụ[NGÀY ĐẾN HẠN],DATE(WkYear,_xlfn.SINGLE(WkMonthNum),B16))>0,\"Đến hạn nộp bài!\",\"\")))","v":""},{"$f":"_xlfn.SINGLE(IF(LEN(C16)=0,\"\",IF(COUNTIF(Nhiệm_vụ[NGÀY ĐẾN HẠN],DATE(WkYear,_xlfn.SINGLE(WkMonthNum),C16))>0,\"Đến hạn nộp bài!\",\"\")))","v":""},{"$f":"_xlfn.SINGLE(IF(LEN(D16)=0,\"\",IF(COUNTIF(Nhiệm_vụ[NGÀY ĐẾN HẠN],DATE(WkYear,_xlfn.SINGLE(WkMonthNum),D16))>0,\"Đến hạn nộp bài!\",\"\")))","v":""},{"$f":"_xlfn.SINGLE(IF(LEN(E16)=0,\"\",IF(COUNTIF(Nhiệm_vụ[NGÀY ĐẾN HẠN],DATE(WkYear,_xlfn.SINGLE(WkMonthNum),E16))>0,\"Đến hạn nộp bài!\",\"\")))","v":""},{"$f":"_xlfn.SINGLE(IF(LEN(F16)=0,\"\",IF(COUNTIF(Nhiệm_vụ[NGÀY ĐẾN HẠN],DATE(WkYear,_xlfn.SINGLE(WkMonthNum),F16))>0,\"Đến hạn nộp bài!\",\"\")))","v":""},{"$f":"_xlfn.SINGLE(IF(LEN(G16)=0,\"\",IF(COUNTIF(Nhiệm_vụ[NGÀY ĐẾN HẠN],DATE(WkYear,_xlfn.SINGLE(WkMonthNum),G16))>0,\"Đến hạn nộp bài!\",\"\")))","v":""},{"$f":"_xlfn.SINGLE(IF(LEN(H16)=0,\"\",IF(COUNTIF(Nhiệm_vụ[NGÀY ĐẾN HẠN],DATE(WkYear,_xlfn.SINGLE(WkMonthNum),H16))>0,\"Đến hạn nộp bài!\",\"\")))","v":""}]